Cogmind - Beta 14 @@@ ROGUE MODE // 2024.10.02 @ 23:00:47 Player: Ivanna Dostya Result: Destroyed by S-27 Virus with Autogun Performance ------------- Evolutions (4) 2000 Regions Visited (10) 2000 Robots Destroyed (91) 455 Value Destroyed (3463) 3463 Prototype IDs (24) 480 Alien Tech Used (0) 0 Bonus (610) 610 TOTAL SCORE: 9008 Bonus ------- High Alert Combat Kills 248 Follower Combat Kills 62 Aligned with FarCom 300 Cogmind --------- Core Integrity 0/850 Matter 275/300 Energy 94/100 System Corruption 24% Temperature Cool (0) Movement Walking (120) Location -6/Lower Caves Parts ------- > --- POWER (1) -------- (None) > --- PROPULSION (6) --- Carbon-fiber Leg Carbon-fiber Leg > --- UTILITY (4) ------ Improved Heat Sink Medium Storage Unit Improved Salvage Targeting Computer Improved Targeting Computer > --- WEAPON (4) ------- Autogun Great Maul > --- INVENTORY (10) --- Improved Deuterium Engine High-capacity Matter Pod (200) Armor Integrity Analyzer Peak State ------------ > --- POWER ------------ Nuclear Core > --- PROPULSION ------- Advanced Treads Carbon-fiber Leg Carbon-fiber Leg Carbon-fiber Leg Improved Titanium Leg Flexi-carbon Leg > --- UTILITY ---------- High-capacity Storage Unit Targeting Computer Kinecellerator Hacking Suite > --- WEAPON ----------- Minigun AWS/Autocannon > --- INVENTORY -------- Improved Ion Engine Light Deuterium Engine Nuclear Core Light Nuclear Core Light Angular Momentum Engine Carbon-fiber Leg Improved Heat Sink Compact Battery High-capacity Matter Pod High-capacity Matter Pod Improved Terrain Scanner Improved Targeting Computer Cloaking Device Shield Generator Medium Laser Minigun Minigun Rocket Launcher Mini Grenade Launcher [Rating: 71] Favorites ----------- Power Nuclear Core Engine Improved Ion Engine Power Core Nuclear Core Reactor Light Antimatter Reactor Propulsion Carbon-fiber Leg Treads Advanced Treads Leg Carbon-fiber Leg Wheel Compact Wheel Flight Unit Xenon Bombardment Thruster Utility Targeting Computer Device Shield Generator Storage High-capacity Storage Unit Processor Targeting Computer Hackware Hacking Suite Protection Hardened Light Armor Plating Weapon Minigun Energy Gun Wave Gun Energy Cannon Proton Cannon Ballistic Gun Minigun Ballistic Cannon AWS/Autocannon Launcher Mini Grenade Launcher Special Weapon Plasma Flamer Impact Weapon Great Maul Build | -11 -10 -10 -9 -9 -9 -8 -8 -7 -6 -6 ------- Run | Yrd Mat Min Mat Min Exi Min Mat Fac Fac Low Slots Evolved 8 | . . . 2 . . . 2 2 2 . Power . | . . . . . . . . . . . Propulsion 4 | . . . 1 . . . . 2 1 . Utility 2 | . . . 1 . . . . . 1 . Weapon 2 | . . . . . . . 2 . . . Parts Attached 114 | 1 4 . 7 9 . . 14 7 38 34 Power 9 | . . . 1 . . . 2 1 2 3 Engine 2 | . . . 1 . . . . . 1 . Core 6 | . . . . . . . 2 1 1 2 Reactor 1 | . . . . . . . . . . 1 Propulsion 41 | . 2 . 1 . . . 9 4 15 10 Treads 2 | . . . . . . . . 1 1 . Leg 35 | . 2 . 1 . . . 9 3 13 7 Wheel 2 | . . . . . . . . . . 2 Hover . | . . . . . . . . . . . Flight 2 | . . . . . . . . . 1 1 Utility 24 | . 1 . 3 3 . . . 1 5 11 Device 10 | . 1 . 1 1 . . . 1 2 4 Storage 3 | . . . . 2 . . . . . 1 Processor 6 | . . . 2 . . . . . 1 3 Hackware 2 | . . . . . . . . . 2 . Protection 3 | . . . . . . . . . . 3 Artifact . | . . . . . . . . . . . Weapon 40 | 1 1 . 2 6 . . 3 1 16 10 Energy Gun 7 | . 1 . . . . . . . 3 3 Energy Cannon 1 | . . . . . . . . . . 1 Ballistic Gun 19 | 1 . . 2 3 . . 1 1 9 2 Ballistic Cannon 2 | . . . . . . . 1 . 1 . Launcher 7 | . . . . 3 . . 1 . 3 . Special Weapon 2 | . . . . . . . . . . 2 Impact Weapon 2 | . . . . . . . . . . 2 Slashing Weapon . | . . . . . . . . . . . Piercing Weapon . | . . . . . . . . . . . Special Melee Weapon . | . . . . . . . . . . . Unidentified Prototypes 1 | . . . . . . . . . 1 . Corrupted Parts 1 | . . . . . . . . . . 1 System Corruption 6 | . . . . . . . . . . 6 Parts Lost 43 | . . . . 1 . . . . 22 20 Power 4 | . . . . . . . . . 1 3 Propulsion 18 | . . . . . . . . . 11 7 Utility 6 | . . . . 1 . . . . 1 4 Weapon 15 | . . . . . . . . . 9 6 Highest Loss Streak 9 | . . . . 1 . . . . 9 8 To Critical Strikes 2 | . . . . . . . . . . 2 Average Slot Usage (%) 86 | . 98 100 100 100 100 100 80 70 84 81 Engine 4 | . 14 14 11 11 11 11 . . 1 . Core 4 | . . . . . . . 8 7 4 5 Leg 27 | . 28 28 33 33 33 33 26 22 29 23 Device 7 | . 12 14 11 2 11 11 9 7 3 5 Storage 8 | . 14 14 11 19 11 11 9 7 5 4 Processor 8 | . . . 11 11 11 11 9 7 9 9 Energy Gun 2 | . 2 14 4 . . . . . 2 7 Ballistic Gun 12 | . 25 14 17 20 22 22 8 6 7 5 Ballistic Cannon 3 | . . . . . . . 9 7 3 . Peak Build Rating 71 | 6 7 7 15 17 20 20 53 60 71 57 Average Rating 37 | 6 6 7 13 15 18 20 51 54 50 43 On Entrance 20 | 6 6 7 7 15 17 20 20 53 60 9 Naked Turns 25 | . . . . . . . . . 25 . Heaviest Build 116 | 13 15 15 19 57 55 55 112 112 116 38 Greatest Support 101 | 20 20 20 30 30 30 30 47 62 101 76 Greatest Overweight (x) 3 | . . . . 1 1 1 3 3 1 1 Average Overweight (x) . | . . . . . 1 1 2 1 . . Largest Inventory Capacity 20 | 8 8 8 8 20 20 20 20 20 20 10 Average Capacity 16 | 8 8 8 8 18 20 20 20 20 19 8 Most Carried 20 | 8 8 8 8 12 18 19 20 20 20 5 Average Carried 13 | 6 7 8 7 10 13 18 19 19 15 4 Final Capacity 20 | 8 8 8 8 20 20 20 20 20 5 10 Final Carried 20 | 8 8 8 8 12 18 19 20 20 5 3 Class Distribution -------------------- 36% | Mutant 33% | Skirmisher 9% | Gunner 6% | Scavenger-Mutant 6% | Scavenger-Gunner 4% | Derelict-Mutant 3% | Derelict-Gunner Dominant Class ---------------- Mutant | -10/Materials Mutant | -10/Mines Mutant | -9/Materials Mutant | -9/Mines Mutant | -9/Exiles Mutant | -8/Mines Skirmisher | -8/Materials Skirmisher | -7/Factory Gunner | -6/Factory Scavenger-Mutant | -6/Lower Caves Resources | -11 -10 -10 -9 -9 -9 -8 -8 -7 -6 -6 ----------- Run | Yrd Mat Min Mat Min Exi Min Mat Fac Fac Low Matter Collected 2877 | 210 72 53 . 223 362 89 319 41 917 591 Remotely . | . . . . . . . . . . . Salvage Created 2810 | 10 189 . . 101 . 10 865 59 999 577 Parts 149 | 3 9 . . 19 . 2 51 3 47 15 Haulers Intercepted . | . . . . . . . . . . . Recyclers Shooed 4 | . 2 . . . . . 2 . . . Parts Field Recycled . | . . . . . . . . . . . Retrieved Matter . | . . . . . . . . . . . Parts Self-Destructed 7 | . . . . . . . . . . 7 Prevented 6 | . . . . . . . . . . 6 Kills | -11 -10 -10 -9 -9 -9 -8 -8 -7 -6 -6 ------- Run | Yrd Mat Min Mat Min Exi Min Mat Fac Fac Low Combat Hostiles Destroyed 75 | . 4 . . 12 . 1 16 3 26 13 Melee 1 | . . . . . . . . . . 1 Guns 27 | . 4 . . 3 . 1 1 . 9 9 Cannons 29 | . . . . . . . 14 3 12 . AOE 17 | . . . . 9 . . 1 . 5 2 Classes Destroyed 14 | 1 2 . . 1 . . 6 2 2 . Worker 3 | . . . . . . . 3 . . . Tunneler 1 | 1 . . . . . . . . . . Recycler 4 | . . . . . . . 4 . . . Mechanic 1 | . . . . . . . . . 1 . Watcher 7 | . 1 . . . . . 3 1 2 . Swarmer 24 | . . . . 12 . 1 3 . 3 5 Saboteur 1 | . . . . . . . . . 1 . Grunt 25 | . 4 . . . . . 8 . 10 3 Brawler 5 | . . . . . . . 1 . 4 . Duelist 4 | . . . . . . . 1 . 2 1 Protector 2 | . . . . . . . 1 . 1 . Sentry 3 | . . . . . . . 2 . 1 . Hunter 5 | . . . . . . . . 2 3 . Programmer 2 | . . . . . . . . 1 1 . Thug 1 | . . . . . . . . . . 1 Savage 3 | . . . . . . . . . . 3 Best Kill Streak 8 | 1 4 . . 5 . 1 7 1 8 3 Combat Bots Only 7 | . 4 . . 5 . 1 5 1 7 3 Max Kills in Single Turn 3 | 1 1 . . 3 . 1 2 1 2 2 Gunslinging 1 | . . . . . . . . . 1 . Exploded 3 | . . . . 3 . . 1 . 2 2 Melee 1 | . . . . . . . . . . 1 Uniques/NPCs Destroyed . | . . . . . . . . . . . Combat | -11 -10 -10 -9 -9 -9 -8 -8 -7 -6 -6 -------- Run | Yrd Mat Min Mat Min Exi Min Mat Fac Fac Low Hostile Shots Fired 575 | . 23 . . 24 . 2 25 15 266 220 Missed 193 | . 7 . . 11 . 2 6 2 95 70 Damage Taken 6376 | . 206 . . 103 . . 184 140 3290 2453 Core 899 | . . . . 14 . . 24 10 667 184 Absorbed by Shields 145 | . . . . 19 . . 74 52 . . Core Remaining (%) 97 | 100 . 100 . . . 96 95 98 . . Volleys Fired 166 | 6 27 . 2 10 . 1 21 6 44 49 Largest 4 | 2 2 . 2 2 . 2 1 1 4 4 Hottest 208 | 40 40 . 50 50 . 50 33 25 128 208 Shots Fired 392 | 10 54 . 4 11 . 2 56 19 137 99 Gun 280 | 10 54 . 4 6 . 2 19 6 94 85 Cannon 87 | . . . . . . . 35 13 33 6 Launcher 17 | . . . . 5 . . 2 . 10 . Special 8 | . . . . . . . . . . 8 Kinetic 302 | 10 54 . 4 6 . 2 54 19 111 42 Thermal 60 | . . . . . . . . . 16 44 Explosive 14 | . . . . 2 . . 2 . 10 . Electromagnetic 16 | . . . . 3 . . . . . 13 Robot Hit Streak 16 | 1 16 . 1 5 . 2 7 15 14 10 Robot Miss Streak 4 | 4 3 . 1 1 . 1 3 1 4 4 Penetration Max . | . . . . . . . . . . . Secondary Targets 4 | . . . . . . 1 . . 3 . Max Gunslinging Chain 1 | . . . . . . 1 . . 1 . Autonomous 77 | . . . . . . . 35 13 29 . Shots Hit Robots 273 | 4 38 . 2 6 . 1 38 16 100 68 Core Hits 152 | 2 15 . . 11 . 1 26 4 69 24 Critical Kills . | . . . . . . . . . . . Critical Parts Destroyed 1 | . . . . . . . . . . 1 Critical Strikes 12 | . . . . . . . 3 2 5 2 Burn 3 | . . . . . . . . . 2 1 Blast 8 | . . . . . . . 3 2 3 . Smash 1 | . . . . . . . . . . 1 Melee Attacks 9 | . . . . . . . . . . 9 Impact 9 | . . . . . . . . . . 9 Slashing . | . . . . . . . . . . . Piercing . | . . . . . . . . . . . Sneak Attacks . | . . . . . . . . . . . Combat Hostiles . | . . . . . . . . . . . Follow-up Attacks . | . . . . . . . . . . . Damage Inflicted 11169 | 36 403 . 43 525 . 14 2971 866 4744 1567 Guns 3102 | 36 391 . 36 66 . 14 224 50 1221 1064 Cannons 5368 | . . . . . . . 2507 816 1991 54 Explosions 2302 | . . . . 451 . . 222 . 1521 108 Melee 272 | . . . . . . . . . . 272 Ramming 56 | . 12 . 7 8 . . 18 . 11 . Kinetic 7680 | 36 391 . 36 66 . 14 2731 866 3091 449 Thermal 875 | . . . . 51 . . . . 121 703 Explosive 2044 | . . . . 328 . . 222 . 1494 . Electromagnetic 242 | . . . . 72 . . . . 27 143 Impact 272 | . . . . . . . . . . 272 Slashing . | . . . . . . . . . . . Piercing . | . . . . . . . . . . . Highest Corruption 24 | . . . . . . . 4 . 7 24 Average Corruption 10 | . . . . . . . 3 . 6 17 Corruption Purged . | . . . . . . . . . . . Corruption Blocked . | . . . . . . . . . . . Effects 83 | . . . . . . . 14 . 15 54 Message Errors 23 | . . . . . . . 3 . 4 16 Matter Fused 13 | . . . . . . . 5 . 1 7 Heat Flow Errors 8 | . . . . . . . 2 . 2 4 Energy Discharges 13 | . . . . . . . 2 . 1 10 Parts Rejected 3 | . . . . . . . . . 2 1 Parts Fused 1 | . . . . . . . . . 1 . Data Loss (minor) 9 | . . . . . . . 2 . 2 5 Data Loss (major) 2 | . . . . . . . . . 1 1 Misfires 4 | . . . . . . . . . . 4 Alerts 2 | . . . . . . . . . . 2 Weapon Failures 5 | . . . . . . . . . 1 4 Overload Shots . | . . . . . . . . . . . Overflow Damage 894 | . . . . 39 . . 387 119 260 89 Projectiles 698 | . . . . . . . 387 119 183 9 Explosions 116 | . . . . 39 . . . . 77 . Melee 80 | . . . . . . . . . . 80 Knockbacks 24 | . 1 . . . . . 5 7 11 . Impact 1 | . 1 . . . . . . . . . Kinetic 23 | . . . . . . . 5 7 11 . Secondary . | . . . . . . . . . . . Self-Inflicted Damage 324 | . . . . 18 . . . . 257 49 Shots 7 | . . . . 2 . . . . 4 1 Rammed 2 | . . . . . . . . . 2 . Targets Rammed 9 | . 1 . 1 2 . . 3 . 2 . Kicked 7 | . 1 . 1 2 . . 3 . . . Crushed . | . . . . . . . . . . . Highest Temperature 632 | . 9 . 6 6 . 6 260 . 196 632 Average Temperature 101 | . 7 . 4 4 . 4 67 . 81 133 Received Heat Transfer 1441 | . 114 . . . . . 84 . 757 486 Effects 12 | . . . . . . . . . . 12 Shutdowns 1 | . . . . . . . . . . 1 Energy Bleed 1 | . . . . . . . . . . 1 Interference 7 | . . . . . . . . . . 7 Matter Decay 1 | . . . . . . . . . . 1 Short Circuit 2 | . . . . . . . . . . 2 Siege Activations . | . . . . . . . . . . . Robots Corrupted 1 | . . . . . . . . . . 1 Combat Hostiles 1 | . . . . . . . . . . 1 Parts Fried 1 | . . . . . . . . . . 1 Impact Corruptions 2 | . . . . . . . . . . 2 Robots Melted . | . . . . . . . . . . . Combat Hostiles . | . . . . . . . . . . . Parts Melted 7 | . . . . . . . . . 3 4 Heat Transferred 1917 | . . . . . . . . . 499 1418 Parts Sabotaged . | . . . . . . . . . . . Parts Stolen . | . . . . . . . . . . . Parts Stripped . | . . . . . . . . . . . Power Chain Reactions 3 | . . . . 2 . . . . . 1 Alert | -11 -10 -10 -9 -9 -9 -8 -8 -7 -6 -6 ------- Run | Yrd Mat Min Mat Min Exi Min Mat Fac Fac Low Peak Influence 720 | 5 205 31 41 324 . 104 490 154 720 . Initial 154 | . 3 1 11 15 . . 40 154 22 . Average 200 | 2 72 19 18 209 . 103 236 101 430 . Maximum Alert Level 3 | . 1 . . 1 . . 2 . 3 . Low Security (%) 61 | 100 83 100 100 40 . 100 40 100 18 . Level 1 26 | . 16 . . 59 . . 55 . 25 . Level 2 12 | . . . . . . . 4 . 55 . Level 3 . | . . . . . . . . . . . Level 4 . | . . . . . . . . . . . Level 5 . | . . . . . . . . . . . High Security . | . . . . . . . . . . . Max Security . | . . . . . . . . . . . Squads Dispatched 19 | . 1 . 1 . . . 3 2 12 . Investigation 7 | . . . 1 . . . 1 1 4 . Extermination 2 | . . . . . . . . 1 1 . Reinforcement 3 | . 1 . . . . . 1 . 1 . Assault 4 | . . . . . . . 1 . 3 . Garrison 3 | . . . . . . . . . 3 . Intercept . | . . . . . . . . . . . Searches Triggered . | . . . . . . . . . . . Construction Impeded . | . . . . . . . . . . . Haulers Reinforced . | . . . . . . . . . . . Active Scanning Responses . | . . . . . . . . . . . Cargo Convoy Interrupts . | . . . . . . . . . . . Stealth | -11 -10 -10 -9 -9 -9 -8 -8 -7 -6 -6 --------- Run | Yrd Mat Min Mat Min Exi Min Mat Fac Fac Low Distress Signals 4 | . . . . . . . 3 . 1 . Communications Jammed . | . . . . . . . . . . . Distress Signals . | . . . . . . . . . . . Times Spotted 132 | . 16 1 . 13 . 3 22 4 49 24 Peak Tracking Total 13 | . 5 2 . 5 . 3 4 1 13 9 Tactical Retreats 12 | . 1 1 . . . . . . 4 6 Traps | -11 -10 -10 -9 -9 -9 -8 -8 -7 -6 -6 ------- Run | Yrd Mat Min Mat Min Exi Min Mat Fac Fac Low Traps Triggered 7 | . . . . . . . 3 3 1 . Indirectly . | . . . . . . . . . . . Trap Hack Attempts . | . . . . . . . . . . . Triggered . | . . . . . . . . . . . Disarmed . | . . . . . . . . . . . Reprogrammed . | . . . . . . . . . . . Reused . | . . . . . . . . . . . Traps Extracted . | . . . . . . . . . . . Installed . | . . . . . . . . . . . Triggered 1 | . . . . . . . . . . 1 Machines | -11 -10 -10 -9 -9 -9 -8 -8 -7 -6 -6 ---------- Run | Yrd Mat Min Mat Min Exi Min Mat Fac Fac Low Machines Disabled 11 | . . . . . . . 4 1 6 . Max in Single Turn 4 | . . . . . . . 1 1 4 . Garrison Access 4 | . . . . . . . 1 1 2 . Machines Repaired . | . . . . . . . . . . . Machines Dismantled . | . . . . . . . . . . . Machines Sabotaged . | . . . . . . . . . . . Overloaded Fab Kills . | . . . . . . . . . . . Hacking | -11 -10 -10 -9 -9 -9 -8 -8 -7 -6 -6 --------- Run | Yrd Mat Min Mat Min Exi Min Mat Fac Fac Low Machines Accessed 23 | . 3 . 2 . 1 . 8 4 4 1 Terminals 13 | . 3 . . . . . 5 2 3 . Fabricators . | . . . . . . . . . . . Repair Stations 1 | . . . . . . . 1 . . . Recycling Units 4 | . . . 2 . . . 1 1 . . Scanalyzers . | . . . . . . . . . . . Garrison Access 3 | . . . . . . . 1 1 1 . Total Hacks 54 | . 8 . 5 . 1 . 17 9 13 1 Successful 20 | . 2 . 3 . 1 . 5 3 5 1 Failed 34 | . 6 . 2 . . . 12 6 8 . Catastrophic 7 | . . . . . . . 3 1 3 . Database Lockouts . | . . . . . . . . . . . Manual 34 | . 6 . 4 . 2 . 12 6 4 . Terminals 35 | . 8 . . . . . 12 6 9 . Fabricators . | . . . . . . . . . . . Repair Stations 1 | . . . . . . . 1 . . . Recycling Units 8 | . . . 5 . . . 1 2 . . Scanalyzers . | . . . . . . . . . . . Garrison Access 8 | . . . . . . . 3 1 4 . Terminal Hacks 9 | . . . . . 1 . 2 . 5 1 Record 2 | . . . . . . . . . 2 . Robot Analysis 1 | . . . . . . . 1 . . . Open Door 1 | . . . . . . . . . . 1 Branch Access Points 2 | . . . . . . . 1 . 1 . Unreport Threat 2 | . . . . . . . . . 2 . Derelict Proto ID Bank 1 | . . . . . 1 . . . . . Fabricator Hacks . | . . . . . . . . . . . Repair Station Hacks . | . . . . . . . . . . . Recycling Unit Hacks 2 | . . . 1 . . . 1 . . . Report Inventory 2 | . . . 1 . . . 1 . . . Scanalyzer . | . . . . . . . . . . . Garrison Access Hacks 1 | . . . . . . . . 1 . . Seal Access 1 | . . . . . . . . 1 . . Unauthorized Hacks 8 | . 2 . 2 . . . 2 2 . . Terminals 6 | . 2 . . . . . 2 2 . . Botnet 6 | . 2 . . . . . 2 2 . . Fabricators . | . . . . . . . . . . . Repair Stations . | . . . . . . . . . . . Recycling Units 2 | . . . 2 . . . . . . . Monitor 1 | . . . 1 . . . . . . . Tunnel 1 | . . . 1 . . . . . . . Scanalyzers . | . . . . . . . . . . . Garrison Access . | . . . . . . . . . . . Data Cores Recovered . | . . . . . . . . . . . Used . | . . . . . . . . . . . Hacking Detections 18 | . 3 . 1 . . . 7 3 4 . Full Trace Events 6 | . . . . . . . 1 1 4 . Feedback Events . | . . . . . . . . . . . Feedback Blocked . | . . . . . . . . . . . Robot Schematics Acquired . | . . . . . . . . . . . Robots Built . | . . . . . . . . . . . Authchips . | . . . . . . . . . . . Time . | . . . . . . . . . . . Total Robot Build Rating . | . . . . . . . . . . . Part Schematics Acquired . | . . . . . . . . . . . Parts Built . | . . . . . . . . . . . Authchips . | . . . . . . . . . . . Time . | . . . . . . . . . . . Total Part Build Rating . | . . . . . . . . . . . Parts Repaired . | . . . . . . . . . . . Time . | . . . . . . . . . . . Parts Recycled . | . . . . . . . . . . . Recycled Matter . | . . . . . . . . . . . Retrieved Matter . | . . . . . . . . . . . Retrieved Components . | . . . . . . . . . . . Parts Scanalyzed . | . . . . . . . . . . . Part Schematics Acquired . | . . . . . . . . . . . Parts Damaged . | . . . . . . . . . . . Bothacking | -11 -10 -10 -9 -9 -9 -8 -8 -7 -6 -6 ------------ Run | Yrd Mat Min Mat Min Exi Min Mat Fac Fac Low Used RIF Installer . | . . . . . . . . . . . Robots Hacked . | . . . . . . . . . . . Non-combat . | . . . . . . . . . . . Combat . | . . . . . . . . . . . Robot Hacks Applied . | . . . . . . . . . . . Relay Couplers Released 2 | . . . . . . . 1 . 1 . Machine Destruction 2 | . . . . . . . 1 . 1 . Fabnet Peak Effective % . | . . . . . . . . . . . Robots Rewired . | . . . . . . . . . . . Allies Hacked . | . . . . . . . . . . . Hacks Repelled . | . . . . . . . . . . . Allies | -11 -10 -10 -9 -9 -9 -8 -8 -7 -6 -6 -------- Run | Yrd Mat Min Mat Min Exi Min Mat Fac Fac Low Total Allies 3 | . . . . 3 . . . . . . Largest Group 3 | . . . . 3 3 3 3 . . . Highest-Rated Group 40 | . . . . 40 40 40 40 . . . Highest-Rated Ally 16 | . . . . 16 16 16 16 . . . Total Orders . | . . . . . . . . . . . Ally Attacks 21 | . . . . . . 5 16 . . . Total Damage 209 | . . . . . . 60 149 . . . Kills 4 | . . . . . . 3 1 . . . Allies Corrupted . | . . . . . . . . . . . Allies Melted . | . . . . . . . . . . . Intel | -11 -10 -10 -9 -9 -9 -8 -8 -7 -6 -6 ------- Run | Yrd Mat Min Mat Min Exi Min Mat Fac Fac Low Robot Analysis Total 1 | . . . . . . . 1 . . . Derelict Logs Recovered 3 | . . . . 1 . . . . . 2 Drone Launches . | . . . . . . . . . . . Drone Recoveries . | . . . . . . . . . . . Exploration | -11 -10 -10 -9 -9 -9 -8 -8 -7 -6 -6 ------------- Run | Yrd Mat Min Mat Min Exi Min Mat Fac Fac Low Turns Passed 6554 | 34 559 167 260 324 555 384 1344 881 985 1061 Spaces Moved 3465 | 13 363 139 198 160 291 199 466 317 594 725 Core 139 | . . . . . . . . . 99 40 Treads . | . . . . . . . . . . . Legs 3162 | 13 363 139 198 160 291 199 466 317 495 521 Wheels 164 | . . . . . . . . . . 164 Hover . | . . . . . . . . . . . Flight . | . . . . . . . . . . . Fastest Speed 50 | 120 120 120 120 120 190 190 260 192 50 50 Average Speed 166 | 120 120 120 120 176 190 190 268 261 134 112 Slowest Speed 335 | 120 120 120 120 190 190 190 330 335 194 190 Overloaded Moves . | . . . . . . . . . . . Propulsion Burnouts . | . . . . . . . . . . . Robots Hopped . | . . . . . . . . . . . Cave-ins Triggered . | . . . . . . . . . . . Exploration Rate (%) 37 | 2 50 33 18 43 69 59 38 9 19 72 Regions Visited 10 Branch Regions 5 Pre-discovered Areas 1 | . . . 1 . . . . . . . Known Exits Taken 2 | . . . 1 . . . . . 1 . Unknown Exits Taken 8 | 1 1 1 . 1 1 1 1 1 . . Scrap Searched 9 | . . 1 . 1 . 1 . . . 6 Spaces Dug 17 | . . . . 17 . . . . . . Terrain Destroyed 91 | . . . . 24 . . 19 1 36 11 Melee . | . . . . . . . . . . . Projectile 10 | . . . . . . . 4 1 5 . AOE 81 | . . . . 24 . . 15 . 31 11 Terrain Rammed . | . . . . . . . . . . . Walls Destroyed . | . . . . . . . . . . . Machines Disabled . | . . . . . . . . . . . Actions | -11 -10 -10 -9 -9 -9 -8 -8 -7 -6 -6 --------- Run | Yrd Mat Min Mat Min Exi Min Mat Fac Fac Low Total 3972 | 22 442 139 217 187 294 204 540 364 695 868 Wait 108 | 1 27 1 . 3 . 4 12 26 . 34 Move 3455 | 12 362 138 197 159 290 198 465 316 593 725 Hop . | . . . . . . . . . . . Pick Up 63 | 2 9 . 6 4 4 1 11 4 13 9 Fast Attach 40 | . 2 . . . . . 3 6 6 23 Attach 34 | . . . 2 1 . . 2 . 20 9 Detach 1 | . . . . . . . 1 . . . Swap 40 | 1 2 . 5 8 . . 9 1 12 2 Drop 45 | . 12 . 4 . . . 13 5 5 6 Fire 166 | 6 27 . 2 10 . 1 21 6 44 49 Melee 9 | . . . . . . . . . . 9 Ram 2 | . . . . . . . . . 2 . Kick 7 | . 1 . 1 2 . . 3 . . . Crush . | . . . . . . . . . . . Escape Stasis . | . . . . . . . . . . . Rewire 2 | . . . . . . . . . . 2 Trap . | . . . . . . . . . . . Miscellaneous . | . . . . . . . . . . . Route ------- -11/Scrapyard -10/Materials (discovered 2 exits: *Mat / [*Min]) -10/Mines -9/Materials -9/Mines (discovered 2 exits: *Mat / *Exi) -9/Exiles -8/Mines -8/Materials -7/Factory -6/Factory (discovered 2 exits: *Low x2) -6/Lower Caves History --------- Turn | Location | Event 3 | -11/Scrapyard | Discovered new exit (range 3) 35 | -11/Scrapyard | Entered Materials 332 | -10/Materials | Build established: Mutant 435 | -10/Materials | Discovered new exit (range 12) 576 | -10/Materials | Discovered new exit (range 15) 594 | -10/Materials | Entered Mines 755 | -10/Mines | Discovered new exit (range 5) 761 | -10/Mines | Entered Materials 761 | -9/Materials | Evolved 2 slots: Propulsion x1, Utility x1 763 | -9/Materials | Discovered new exit (range 7) 773 | -9/Materials | Identified exit to Mines 1021 | -9/Materials | Entered Mines 1025 | -9/Mines | Discovered new exit (range 9) 1071 | -9/Mines | Found DCF Scrap (12 items) 1102 | -9/Mines | Received a Rocket Launcher from a helpful Derelict 1123 | -9/Mines | Learned Materials emergency access door positions 1316 | -9/Mines | Deemed a non-threat by the Exiles lab entrance 1316 | -9/Mines | Discovered new exit (range 5) 1322 | -9/Mines | Assisted by bots powering up and referring to "LRC-V3" 1345 | -9/Mines | Entered Exiles 1345 | -9/Exiles | Accompanied by 3 allies 1391 | -9/Exiles | Met 8R-AWN 1423 | -9/Exiles | Met EX-HEX 1560 | -9/Exiles | Met EX-BIN 1587 | -9/Exiles | Aligned with FarCom system 1589 | -9/Exiles | Given EX-Vault access code 1632 | -9/Exiles | Opened EX-Vault 1644 | -9/Exiles | Found AWS/Autocannon 1683 | -9/Exiles | Warned to stay clear of 0b10 Research branches 1736 | -9/Exiles | Met EX-DEC 1880 | -9/Exiles | Discovered new exit (range 14) 1900 | -9/Exiles | Left Exiles lab with AWS/Autocannon 1900 | -9/Exiles | Entered Mines 1900 | -8/Mines | Accompanied by 3 allies 2273 | -8/Mines | Discovered new exit (range 9) 2284 | -8/Mines | Entered Materials 2284 | -8/Materials | Accompanied by 3 allies 2284 | -8/Materials | Evolved 2 slots: Weapon x2 2613 | -8/Materials | Build established: Skirmisher 3586 | -8/Materials | Discovered new exit (range 7) 3628 | -8/Materials | Entered Factory 3628 | -7/Factory | Evolved 2 slots: Propulsion x2 4387 | -7/Factory | Discovered new exit (range 11) 4509 | -7/Factory | Entered another Factory area 4509 | -6/Factory | Evolved 2 slots: Propulsion x1, Utility x1 4700 | -6/Factory | Garrison activated, responded to threat 4725 | -6/Factory | Destroyed 7 combat bots 4787 | -6/Factory | Build established: Gunner 4904 | -6/Factory | AWS/Autocannon suddenly broke down 4989 | -6/Factory | Lost 4 parts (1p1u2w) 5129 | -6/Factory | Lost 9 parts (5n4w) 5209 | -6/Factory | First assault squad dispatched 5295 | -6/Factory | Identified exit to Lower Caves 5437 | -6/Factory | Released all parts (8) 5459 | -6/Factory | Core integrity fell below 50% 5494 | -6/Factory | Entered Lower Caves 5516 | -6/Lower Caves | Found DCF Scrap (14 items) 5608 | -6/Lower Caves | Attracted the attention of an 0b10 checkpoint 5652 | -6/Lower Caves | Core integrity fell below 20% 5678 | -6/Lower Caves | Ambushed by wild Derelicts 5778 | -6/Lower Caves | Lost 7 parts (1p2n1u3w) 5805 | -6/Lower Caves | System corruption reached 10% 5845 | -6/Lower Caves | Lost 3 parts (2u1w) 6293 | -6/Lower Caves | Build established: Scavenger-Mutant 6349 | -6/Lower Caves | Spotted B-75 Beast 6466 | -6/Lower Caves | Learned Factory emergency access door positions 6470 | -6/Lower Caves | Learned Factory emergency access door positions 6555 | -6/Lower Caves | Destroyed by S-27 Virus with Autogun Last Messages --------------- 06515_ Lgt. Nuclear Core destroyed. 06519_ Destroyed VTOL Module. 06522_ System corrupted: Matter fused (-10). 06526_ Critical hit (Destroy). 06526_ Lgt. Antimatter Reactor destroyed. 06530_ Destroyed VTOL Module. 06537_ Carbon-fiber Leg destroyed. 06538_ Com. Wheel destroyed. 06539_ System corrupted: Carbon-fiber Leg rejected. 06540_ S-27 Virus suffers critical hit (Smash). 06540_ Destroyed Lgt. Nuclear Core. 06540_ S-27 Virus system corrupted by crushing effect. 06540_ VTOL Module fried. 06540_ S-27 Virus destroyed. 06544_ Flamer destroyed. 06545_ Acquired Carbon-fiber Leg. 06548_ System corrupted: Autogun jammed. 06553_ Carbon-fiber Leg destroyed. Map ----- +----------------------------------------------------+ | ?????????????????????????????????????????####### | | ????????????????????????????????????????## | | ????????????????????????????????????????# | | ????????????????????????????????????????# ## | | ????????????????????????????????????????## #### | | ?????????????????????????????????????????###??# | | ??????????????????????????????????????????????## | | ???????????????????????????????????????????????## | | ????????????????????????????????????????????????## | | ?????????????????????????????????????????????????# | | ?????????????????????????????????????????????????# | | ???????????????????????????????#####?????????????? | | ??????????????????????????????## ##????????????? | | ??????????????????????????????# ##???????????? | | ??????????????????????????????# #???????????? | | ??????????????????????????????# !#???????????? | | ??????????????????????????????##/ #???????????? | | ??????????????????????????????### #???????????? | | ??????????????????????????????# ## ##??????????? | | ??????????????????????????##### #??????????? | | ??????????????????????????# % #??????????? | | ??????????????????????????# #### #??????????? | | ?????????????????????????##%#??## ##?????????# | | ????????????????????????## ##??# ###?????? | | ???????????????????????## ##?# ##???? | | ???????????????????????# @ #?## #??? # | | ???????????????????????##s #?## ##??# #? | | ???????????????????????? ##??# ####???## ?? | | ???????????????????????## ###??## #######??#??? | | ????????????????????????## ##????# ##????? | | ?????????????????????????# #?????# #? | | ?????????????????????????# #?????## #### ######? | | ?????????????????????????# #??????## #??????????? | | ???????????????????????#?# #???##### #???????##?? | | ???????????????????????# #??## ## #??????? ?? | | ???????????????????????# #?## #???????# ?? | | ????????????????????????# ## #???????# ?? | | ????????????????????????# ##???????# ?? | | ??????????????????????# ## ##????????# #? | | ?????????????????????# ???# ## #####?????# #? | | ????????????????????# ??????# #### ##???## ## | | ????????????????????????????# #??# ##### # | | ????????????????????????????# ##?## ## | | ????????????????????????????# #### ## | | ????????????????????????????# ## ##?# | | ????????????????????????????# ### | | ????????????????????????????# ### ## | | ????????????????????????????#######?###### | | ?????????????????????????????????????????## ## | | ??????????????????????????????????????????# ### | +----------------------------------------------------+ Best States ------------- Heat Dissipation 51 Energy Generation 21 Energy Capacity 265 Matter Stores 330 Matter Capacity 500 Sight Range 16 Terrain Scan Range 16 Terrain Scan Density 10 Armor Coverage 225 Evasion (%) 55 Targeting Accuracy 11 Kinecelleration 30 Salvage Targeting 2 Offensive Hacking 10 Defensive Hacking 12 Item Schematics ----------------- None Robot Schematics ------------------ None Fabricated ------------ Nothing Alien Tech Used ----------------- None Achievements -------------- Oh No You Don't! Challenges ------------ None Game ------ Seed ThermicPhasingCarapace Manual? 0 Play Time 00:57:55 Cumulative 26.9 hours Start 2024.10.02 @ 22:04:11 End 2024.10.02 @ 23:00:47 Sessions 1 Manual Loads 0 Difficulty Rogue Special Mode None Game No. 31 Rogue 29 Adventurer 2 Explorer 0 Win Type - Total 0 Types 0/0/0/0/0/0/0/0/0 Lore% 13 Gallery% 32 Achievement% 28 Wizard Run 0 Options --------- Layout 1 ASCII 0 Keyboard 0 Movement Numpad Keybinds 1 Fullscreen 2 Font 24/Smallcaps Map View 50x35 Zoom Use 0% Tactical HUD 1 Map Filters NONE Filters NONE Steam 1 RUN: 4efb5fb0-46ac-480b-8e93-1989d61626f4